[Event "Early-Titled-Tuesday-Blitz-April-16-2024"]
[Site "Chess.com"]
[Date "2024.04.16"]
[Round "9"]
[White "cthulhuuu"]
[Black "BenchGM"]
[Result "1-0"]
[WhiteElo "2428"]
[BlackElo "2317"]
[TimeControl "180+1"]
[EndTime "9:49:46 PDT"]
[Termination "cthulhuuu won by resignation"]

1. e4 {[%clk 0:03:00.1]} 1... c5 {[%clk 0:02:59.9]} 2. Nf3 {[%clk 0:03:00.3]}
2... e6 {[%clk 0:02:59.9]} 3. d3 {[%clk 0:03:00.2]} 3... Nc6 {[%clk 0:02:52.5]}
4. g3 {[%clk 0:03:00.2]} 4... d5 {[%clk 0:02:49.6]} 5. Nbd2 {[%clk 0:03:00.1]}
5... Nf6 {[%clk 0:02:42.5]} 6. Bg2 {[%clk 0:03:00.3]} 6... d4 {[%clk 0:02:34.3]}
7. O-O {[%clk 0:02:59.2]} 7... e5 {[%clk 0:02:26]} 8. Nc4 {[%clk 0:02:59.3]}
8... Qc7 {[%clk 0:02:21.8]} 9. a4 {[%clk 0:02:59.1]} 9... Be6 {[%clk 0:02:15.5]}
10. b3 {[%clk 0:02:47.6]} 10... h6 {[%clk 0:02:11.3]} 11. Bd2 {[%clk 0:02:38.5]}
11... Be7 {[%clk 0:02:00.3]} 12. Nh4 {[%clk 0:02:31.8]} 12... Qd7 {[%clk
0:01:43.5]} 13. a5 {[%clk 0:02:23.5]} 13... g5 {[%clk 0:01:40.7]} 14. Nf5 {[%clk
0:02:23.5]} 14... Bxf5 {[%clk 0:01:34.2]} 15. exf5 {[%clk 0:02:24.4]} 15... Qxf5
{[%clk 0:01:33.9]} 16. a6 {[%clk 0:02:24.3]} 16... Rd8 {[%clk 0:01:03.2]} 17.
axb7 {[%clk 0:02:23.5]} 17... Nd5 {[%clk 0:01:03]} 18. Bxd5 {[%clk 0:02:01.2]}
18... Rxd5 {[%clk 0:01:02.7]} 19. Rxa7 {[%clk 0:02:02]} 19... O-O {[%clk
0:00:56.8]} 20. Ra8 {[%clk 0:01:59]} 20... Rdd8 {[%clk 0:00:54.4]} 21. Qa1
{[%clk 0:01:51.1]} 21... Rb8 {[%clk 0:00:53]} 22. Qa6 {[%clk 0:01:40.1]} 22...
Qd7 {[%clk 0:00:51.6]} 23. Re1 {[%clk 0:00:59.3]} 23... f6 {[%clk 0:00:49.8]}
24. Nb6 {[%clk 0:00:31.5]} 24... Qxb7 {[%clk 0:00:49.3]} 25. Qc4+ {[%clk
0:00:31.8]} 25... Kh8 {[%clk 0:00:43.4]} 26. Rxb8 {[%clk 0:00:31.1]} 26... Rxb8
{[%clk 0:00:40]} 27. Na4 {[%clk 0:00:31.3]} 27... Nd8 {[%clk 0:00:21.5]} 28.
Nxc5 {[%clk 0:00:19.1]} 28... Qc6 {[%clk 0:00:20.6]} 29. Ne4 {[%clk 0:00:18.8]}
29... Qxc4 {[%clk 0:00:20.2]} 30. dxc4 {[%clk 0:00:19.2]} 30... f5 {[%clk
0:00:17.7]} 31. Nc3 {[%clk 0:00:03.4]} 31... dxc3 {[%clk 0:00:17.4]} 32. Bxc3
{[%clk 0:00:04.3]} 32... Bf6 {[%clk 0:00:16.5]} 33. Rxe5 {[%clk 0:00:04.7]}
33... Bxe5 {[%clk 0:00:16.6]} 34. Bxe5+ {[%clk 0:00:05.6]} 34... Kg8 {[%clk
0:00:15.7]} 35. Bxb8 {[%clk 0:00:06.5]} 35... Ne6 {[%clk 0:00:15.8]} 36. Bd6
{[%clk 0:00:06.3]} 36... Nd4 {[%clk 0:00:15.8]} 37. c5 {[%clk 0:00:06.7]} 37...
Nxc2 {[%clk 0:00:15.5]} 38. c6 {[%clk 0:00:06.7]} 38... Nd4 {[%clk 0:00:15.5]}
39. c7 {[%clk 0:00:07]} 39... Kf7 {[%clk 0:00:15.6]} 40. c8=Q {[%clk 0:00:07.2]}
40... Kf6 {[%clk 0:00:15.2]} 41. Qd8+ {[%clk 0:00:06.5]} 41... Ke6 {[%clk
0:00:15.2]} 42. Qe7+ {[%clk 0:00:06.9]} 42... Kd5 {[%clk 0:00:16.1]} 43. Qe5+
{[%clk 0:00:07.4]} 43... Kc6 {[%clk 0:00:15.6]} 44. Qxd4 {[%clk 0:00:07.9]}
44... Kd7 {[%clk 0:00:16.5]} 45. Be5+ {[%clk 0:00:08.2]} 45... Ke6 {[%clk
0:00:16.3]} 46. Qd6+ {[%clk 0:00:09.1]} 46... Kf7 {[%clk 0:00:16.5]} 47. Qf6+
{[%clk 0:00:09.3]} 47... Ke8 {[%clk 0:00:16.7]} 48. Qe6+ {[%clk 0:00:09.5]}
48... Kd8 {[%clk 0:00:16.8]} 49. b4 {[%clk 0:00:09.6]} 49... f4 {[%clk
0:00:15.7]} 50. b5 {[%clk 0:00:10.1]} 50... fxg3 {[%clk 0:00:15.1]} 51. b6
{[%clk 0:00:10.6]} 51... gxf2+ {[%clk 0:00:14.9]} 52. Kf1 {[%clk 0:00:10.9]}
52... g4 {[%clk 0:00:15]} 53. b7 {[%clk 0:00:11.4]} 1-0

[Event "Early-Titled-Tuesday-Blitz-April-16-2024"]
[Site "Chess.com"]
[Date "2024.04.16"]
[Round "9"]
[White "Zavgorodniy_Sergiy"]
[Black "lrjchess"]
[Result "1-0"]
[WhiteElo "2623"]
[BlackElo "2482"]
[TimeControl "180+1"]
[EndTime "9:49:48 PDT"]
[Termination "Zavgorodniy_Sergiy won by resignation"]

1. d4 {[%clk 0:03:00.9]} 1... Nf6 {[%clk 0:02:53.8]} 2. c4 {[%clk 0:03:01.2]}
2... g6 {[%clk 0:02:52.9]} 3. Nc3 {[%clk 0:03:01]} 3... Bg7 {[%clk 0:02:53.8]}
4. e4 {[%clk 0:03:00.9]} 4... O-O {[%clk 0:02:54.7]} 5. Be2 {[%clk 0:03:01]}
5... d6 {[%clk 0:02:54.2]} 6. Nf3 {[%clk 0:03:01.1]} 6... c5 {[%clk 0:02:51.4]}
7. d5 {[%clk 0:03:00.5]} 7... e6 {[%clk 0:02:51.3]} 8. O-O {[%clk 0:03:00.7]}
8... exd5 {[%clk 0:02:51.3]} 9. exd5 {[%clk 0:03:01.6]} 9... Re8 {[%clk
0:02:51.3]} 10. h3 {[%clk 0:03:01.2]} 10... Ne4 {[%clk 0:02:50.9]} 11. Nxe4
{[%clk 0:03:00.6]} 11... Rxe4 {[%clk 0:02:51.8]} 12. Bd3 {[%clk 0:03:01]} 12...
Re8 {[%clk 0:02:52.1]} 13. Bg5 {[%clk 0:03:00.9]} 13... Bf6 {[%clk 0:02:51]} 14.
Bxf6 {[%clk 0:02:58.2]} 14... Qxf6 {[%clk 0:02:50.8]} 15. Qd2 {[%clk 0:02:58.3]}
15... Na6 {[%clk 0:02:46.8]} 16. Ng5 {[%clk 0:02:49.4]} 16... Bf5 {[%clk
0:02:44.2]} 17. Bxf5 {[%clk 0:02:43]} 17... Qxf5 {[%clk 0:02:45.1]} 18. Nf3
{[%clk 0:02:42.1]} 18... Re4 {[%clk 0:02:35.6]} 19. b3 {[%clk 0:02:41.9]} 19...
Rae8 {[%clk 0:02:35.4]} 20. Rfe1 {[%clk 0:02:42.3]} 20... Nb4 {[%clk 0:02:34.2]}
21. Rxe4 {[%clk 0:02:34.2]} 21... Rxe4 {[%clk 0:02:31.5]} 22. a3 {[%clk
0:02:34.2]} 22... Na6 {[%clk 0:02:26.1]} 23. Re1 {[%clk 0:02:34.1]} 23... Nc7
{[%clk 0:02:20.3]} 24. Kh2 {[%clk 0:02:26.8]} 24... Rxe1 {[%clk 0:02:13.5]} 25.
Qxe1 {[%clk 0:02:25.5]} 25... Qf4+ {[%clk 0:02:12.7]} 26. Kg1 {[%clk 0:02:24.5]}
26... Kf8 {[%clk 0:02:11.1]} 27. Qd2 {[%clk 0:02:19]} 27... Qxd2 {[%clk
0:02:05.7]} 28. Nxd2 {[%clk 0:02:19.9]} 28... f5 {[%clk 0:02:05.9]} 29. f4
{[%clk 0:02:15.7]} 29... Ke7 {[%clk 0:02:05.3]} 30. Kf2 {[%clk 0:02:16]} 30...
b5 {[%clk 0:02:05.5]} 31. Ke3 {[%clk 0:02:14.6]} 31... bxc4 {[%clk 0:02:04.7]}
32. bxc4 {[%clk 0:02:15.4]} 32... Na8 {[%clk 0:01:59.5]} 33. Kd3 {[%clk
0:02:13]} 33... Nb6 {[%clk 0:01:58.9]} 34. Kc3 {[%clk 0:02:13.2]} 34... h6
{[%clk 0:01:49]} 35. Nf3 {[%clk 0:02:11.6]} 35... Kf6 {[%clk 0:01:48]} 36. Kb3
{[%clk 0:02:06.5]} 36... g5 {[%clk 0:01:43.7]} 37. g3 {[%clk 0:02:04.9]} 37...
g4 {[%clk 0:01:42.1]} 38. Ng1 {[%clk 0:01:57.9]} 38... gxh3 {[%clk 0:01:33.1]}
39. Nxh3 {[%clk 0:01:58.8]} 39... Kg6 {[%clk 0:01:28.5]} 40. Nf2 {[%clk
0:01:58.8]} 40... h5 {[%clk 0:01:25.8]} 41. Nd1 {[%clk 0:01:53.7]} 41... a5
{[%clk 0:01:13.9]} 42. Nc3 {[%clk 0:01:00]} 42... h4 {[%clk 0:01:11]} 43. gxh4
{[%clk 0:01:00.9]} 43... Kh5 {[%clk 0:01:10.9]} 44. Nb5 {[%clk 0:00:57.6]} 44...
Nc8 {[%clk 0:00:15.3]} 45. Ka4 {[%clk 0:00:48.8]} 45... Kxh4 {[%clk 0:00:15.4]}
46. Kxa5 {[%clk 0:00:46.5]} 46... Kg4 {[%clk 0:00:16]} 47. Ka6 {[%clk
0:00:42.8]} 47... Kxf4 {[%clk 0:00:16.5]} 48. Kb7 {[%clk 0:00:42.4]} 48... Ke5
{[%clk 0:00:06.1]} 49. Kxc8 {[%clk 0:00:40.1]} 49... f4 {[%clk 0:00:06.7]} 50.
Nc3 {[%clk 0:00:38.5]} 50... f3 {[%clk 0:00:07]} 51. Nd1 {[%clk 0:00:33.7]}
51... Kd4 {[%clk 0:00:07.5]} 52. Kd7 {[%clk 0:00:23.6]} 52... Kxc4 {[%clk
0:00:07.4]} 53. Kxd6 {[%clk 0:00:23.3]} 53... Kd3 {[%clk 0:00:07.8]} 54. Kxc5
{[%clk 0:00:21]} 54... Ke2 {[%clk 0:00:07.9]} 55. Nc3+ {[%clk 0:00:16.6]} 55...
Kd3 {[%clk 0:00:07.8]} 56. Nd1 {[%clk 0:00:14.1]} 56... Ke2 {[%clk 0:00:08.1]}
57. d6 {[%clk 0:00:10.7]} 57... Kxd1 {[%clk 0:00:08.3]} 58. d7 {[%clk
0:00:10.7]} 58... f2 {[%clk 0:00:09.2]} 59. d8=Q+ {[%clk 0:00:10.9]} 59... Ke1
{[%clk 0:00:09.3]} 60. Qf6 {[%clk 0:00:10.7]} 60... f1=Q {[%clk 0:00:08.2]} 61.
Qxf1+ {[%clk 0:00:10.8]} 61... Kxf1 {[%clk 0:00:08.6]} 62. a4 {[%clk 0:00:11.7]}
1-0

[Event "Early-Titled-Tuesday-Blitz-April-16-2024"]
[Site "Chess.com"]
[Date "2024.04.16"]
[Round "9"]
[White "SharapovEvgeny"]
[Black "AsselLesbekova"]
[Result "1/2-1/2"]
[WhiteElo "2660"]
[BlackElo "2444"]
[TimeControl "180+1"]
[EndTime "9:49:52 PDT"]
[Termination "Game drawn - insufficient material"]

1. e4 {[%clk 0:02:59.6]} 1... e5 {[%clk 0:02:59.6]} 2. Nf3 {[%clk 0:02:59.3]}
2... Nf6 {[%clk 0:03:00.2]} 3. d4 {[%clk 0:02:58.2]} 3... Nxe4 {[%clk
0:03:00.3]} 4. Bd3 {[%clk 0:02:57.9]} 4... d5 {[%clk 0:02:59.2]} 5. Nxe5 {[%clk
0:02:58.1]} 5... Nd7 {[%clk 0:02:55]} 6. Nxd7 {[%clk 0:02:57.7]} 6... Bxd7
{[%clk 0:02:46]} 7. O-O {[%clk 0:02:57.2]} 7... Bd6 {[%clk 0:02:45.1]} 8. c4
{[%clk 0:02:56.8]} 8... c6 {[%clk 0:02:42.8]} 9. cxd5 {[%clk 0:02:56.4]} 9...
cxd5 {[%clk 0:02:43.7]} 10. Qh5 {[%clk 0:02:55]} 10... Nf6 {[%clk 0:02:22.1]}
11. Re1+ {[%clk 0:02:54.2]} 11... Be7 {[%clk 0:02:21.6]} 12. Qe2 {[%clk
0:02:50.4]} 12... Be6 {[%clk 0:02:19.9]} 13. b3 {[%clk 0:02:33.7]} 13... O-O
{[%clk 0:02:17.8]} 14. Ba3 {[%clk 0:02:33.8]} 14... Bxa3 {[%clk 0:02:07]} 15.
Nxa3 {[%clk 0:02:33.4]} 15... Qa5 {[%clk 0:01:59.2]} 16. Nb5 {[%clk 0:02:26.8]}
16... a6 {[%clk 0:01:48.5]} 17. Nd6 {[%clk 0:02:25.9]} 17... Qb6 {[%clk
0:01:39.1]} 18. Nf5 {[%clk 0:02:08]} 18... Bxf5 {[%clk 0:01:37.4]} 19. Bxf5
{[%clk 0:02:07.7]} 19... Qxd4 {[%clk 0:01:32]} 20. Rad1 {[%clk 0:02:07]} 20...
Qf4 {[%clk 0:01:31.7]} 21. Qd3 {[%clk 0:01:50.7]} 21... g6 {[%clk 0:01:26.1]}
22. Bh3 {[%clk 0:01:50.1]} 22... Rfe8 {[%clk 0:01:21.6]} 23. g3 {[%clk
0:01:46.7]} 23... Qd6 {[%clk 0:01:06.9]} 24. Bg2 {[%clk 0:01:44]} 24... Rxe1+
{[%clk 0:01:00.6]} 25. Rxe1 {[%clk 0:01:43.8]} 25... Rd8 {[%clk 0:00:59.5]} 26.
Qd4 {[%clk 0:01:43.3]} 26... b6 {[%clk 0:00:34.2]} 27. h4 {[%clk 0:01:40.2]}
27... h5 {[%clk 0:00:31.5]} 28. b4 {[%clk 0:01:31.2]} 28... Kg7 {[%clk
0:00:30.5]} 29. a3 {[%clk 0:01:22.1]} 29... Rc8 {[%clk 0:00:30]} 30. Rd1 {[%clk
0:01:18.9]} 30... Rd8 {[%clk 0:00:26.3]} 31. Bf3 {[%clk 0:01:17]} 31... Kh7
{[%clk 0:00:23.8]} 32. Kg2 {[%clk 0:01:16]} 32... Rc8 {[%clk 0:00:21.1]} 33. Qd3
{[%clk 0:01:10.4]} 33... d4 {[%clk 0:00:17.3]} 34. Qxd4 {[%clk 0:01:07.3]} 34...
Qxd4 {[%clk 0:00:17.1]} 35. Rxd4 {[%clk 0:01:07.4]} 35... Rc3 {[%clk 0:00:16]}
36. Rd6 {[%clk 0:01:05.1]} 36... Ng4 {[%clk 0:00:16]} 37. a4 {[%clk 0:00:49.7]}
37... Ra3 {[%clk 0:00:14.3]} 38. Rxb6 {[%clk 0:00:35.9]} 38... Rxa4 {[%clk
0:00:14.2]} 39. Rb7 {[%clk 0:00:30.2]} 39... Kg7 {[%clk 0:00:07.5]} 40. Be2
{[%clk 0:00:22.1]} 40... Ra2 {[%clk 0:00:06]} 41. Rxf7+ {[%clk 0:00:19.5]} 41...
Kxf7 {[%clk 0:00:05.3]} 42. Bc4+ {[%clk 0:00:19]} 42... Kf6 {[%clk 0:00:05]} 43.
Bxa2 {[%clk 0:00:19.1]} 43... Ne5 {[%clk 0:00:05.4]} 44. Bb1 {[%clk 0:00:17.9]}
44... Nc6 {[%clk 0:00:05.4]} 45. b5 {[%clk 0:00:14.7]} 45... axb5 {[%clk
0:00:05.6]} 46. Kf3 {[%clk 0:00:15.5]} 46... b4 {[%clk 0:00:05.9]} 47. Ke4
{[%clk 0:00:15.3]} 47... g5 {[%clk 0:00:03.5]} 48. hxg5+ {[%clk 0:00:15.1]}
48... Kxg5 {[%clk 0:00:04.4]} 49. Kd5 {[%clk 0:00:15.6]} 49... Ne7+ {[%clk
0:00:04.7]} 50. Kc4 {[%clk 0:00:15.4]} 50... b3 {[%clk 0:00:04.3]} 51. Kxb3
{[%clk 0:00:15.4]} 51... Nd5 {[%clk 0:00:05]} 52. Kc4 {[%clk 0:00:15.4]} 52...
Nf6 {[%clk 0:00:05.6]} 53. Kd4 {[%clk 0:00:13.8]} 53... h4 {[%clk 0:00:05.8]}
54. gxh4+ {[%clk 0:00:13.7]} 54... Kxh4 {[%clk 0:00:06.7]} 55. f4 {[%clk
0:00:13]} 55... Kg4 {[%clk 0:00:06.4]} 56. Ke5 {[%clk 0:00:11.7]} 56... Nd7+
{[%clk 0:00:06.9]} 57. Ke4 {[%clk 0:00:11.9]} 57... Nf6+ {[%clk 0:00:07.2]} 58.
Ke5 {[%clk 0:00:12.5]} 58... Nd7+ {[%clk 0:00:07.5]} 59. Ke6 {[%clk 0:00:13]}
59... Kxf4 {[%clk 0:00:07.5]} 1/2-1/2

[Event "Early-Titled-Tuesday-Blitz-April-16-2024"]
[Site "Chess.com"]
[Date "2024.04.16"]
[Round "9"]
[White "Yeritsyaan"]
[Black "RojonR"]
[Result "1/2-1/2"]
[WhiteElo "2655"]
[BlackElo "2553"]
[TimeControl "180+1"]
[EndTime "9:49:52 PDT"]
[Termination "Game drawn by repetition"]

1. g3 {[%clk 0:03:00.9]} 1... d5 {[%clk 0:02:54.4]} 2. Bg2 {[%clk 0:03:01.2]}
2... c6 {[%clk 0:02:55.1]} 3. Nf3 {[%clk 0:02:58.3]} 3... Bg4 {[%clk 0:02:52.3]}
4. Ne5 {[%clk 0:02:57.2]} 4... Bf5 {[%clk 0:02:51.9]} 5. O-O {[%clk 0:02:56.9]}
5... Nd7 {[%clk 0:02:52.3]} 6. Nxd7 {[%clk 0:02:57.3]} 6... Qxd7 {[%clk
0:02:53.2]} 7. b3 {[%clk 0:02:57.3]} 7... e6 {[%clk 0:02:52.6]} 8. Bb2 {[%clk
0:02:57.7]} 8... Nf6 {[%clk 0:02:52.8]} 9. d3 {[%clk 0:02:58.3]} 9... Be7 {[%clk
0:02:52.3]} 10. Nd2 {[%clk 0:02:58.6]} 10... O-O {[%clk 0:02:51.7]} 11. e4
{[%clk 0:02:59.2]} 11... Bg6 {[%clk 0:02:51.4]} 12. f4 {[%clk 0:02:55.4]} 12...
dxe4 {[%clk 0:02:50.3]} 13. Nxe4 {[%clk 0:02:54.8]} 13... Rfd8 {[%clk
0:02:39.5]} 14. Nxf6+ {[%clk 0:02:53.2]} 14... Bxf6 {[%clk 0:02:40.4]} 15. Bxf6
{[%clk 0:02:53.6]} 15... gxf6 {[%clk 0:02:41.1]} 16. Qe2 {[%clk 0:02:52.7]}
16... Qd4+ {[%clk 0:02:38.4]} 17. Qf2 {[%clk 0:02:53.2]} 17... Qxf2+ {[%clk
0:02:37.1]} 18. Kxf2 {[%clk 0:02:54.1]} 18... a5 {[%clk 0:02:37.1]} 19. a3
{[%clk 0:02:53]} 19... Rd4 {[%clk 0:02:21.3]} 20. Rfe1 {[%clk 0:02:45.4]} 20...
Rad8 {[%clk 0:02:21.4]} 21. Bf3 {[%clk 0:02:43.8]} 21... b6 {[%clk 0:02:12.4]}
22. h4 {[%clk 0:02:43.9]} 22... h5 {[%clk 0:02:12]} 23. Ke3 {[%clk 0:02:22.5]}
23... c5 {[%clk 0:02:11.8]} 24. Kd2 {[%clk 0:02:17.8]} 24... a4 {[%clk
0:01:57.5]} 25. Kc3 {[%clk 0:01:56.8]} 25... axb3 {[%clk 0:01:54.8]} 26. Kxb3
{[%clk 0:01:57.7]} 26... Bxd3 {[%clk 0:01:53.3]} 27. Bxh5 {[%clk 0:01:51.3]}
27... Bh7 {[%clk 0:01:42.5]} 28. Rad1 {[%clk 0:01:48.4]} 28... e5 {[%clk
0:00:52.3]} 29. c3 {[%clk 0:01:42.8]} 29... Rxd1 {[%clk 0:00:35]} 30. Rxd1
{[%clk 0:01:43.7]} 30... Rxd1 {[%clk 0:00:34.8]} 31. Bxd1 {[%clk 0:01:44.6]}
31... Bd3 {[%clk 0:00:34.9]} 32. c4 {[%clk 0:01:27.5]} 32... Kg7 {[%clk
0:00:34.1]} 33. Bc2 {[%clk 0:01:11.5]} 33... Be2 {[%clk 0:00:27.7]} 34. Be4
{[%clk 0:01:01.6]} 34... exf4 {[%clk 0:00:22.7]} 35. gxf4 {[%clk 0:01:01.7]}
35... Kh6 {[%clk 0:00:23.4]} 36. Bd5 {[%clk 0:01:00.1]} 36... Kh5 {[%clk
0:00:23.2]} 37. Ka4 {[%clk 0:00:58.1]} 37... Kg4 {[%clk 0:00:15]} 38. Kb5 {[%clk
0:00:58.7]} 38... Kxf4 {[%clk 0:00:14.4]} 39. Kxb6 {[%clk 0:00:57.8]} 39... Bd1
{[%clk 0:00:11.9]} 40. Kxc5 {[%clk 0:00:56.5]} 40... Kg4 {[%clk 0:00:10.8]} 41.
Kb4 {[%clk 0:00:53.6]} 41... f5 {[%clk 0:00:10.9]} 42. a4 {[%clk 0:00:48.6]}
42... f4 {[%clk 0:00:11.1]} 43. Bxf7 {[%clk 0:00:40.4]} 43... f3 {[%clk
0:00:10.9]} 44. Bd5 {[%clk 0:00:39]} 44... f2 {[%clk 0:00:11.1]} 45. Bg2 {[%clk
0:00:39.5]} 45... Kxh4 {[%clk 0:00:06]} 46. a5 {[%clk 0:00:35.5]} 46... Be2
{[%clk 0:00:04.5]} 47. a6 {[%clk 0:00:32.8]} 47... Kg3 {[%clk 0:00:04.4]} 48. a7
{[%clk 0:00:32.5]} 48... Kxg2 {[%clk 0:00:02.6]} 49. a8=Q+ {[%clk 0:00:32.9]}
49... Bf3 {[%clk 0:00:03.1]} 50. Qg8+ {[%clk 0:00:29.1]} 50... Kh2 {[%clk
0:00:03.4]} 51. Qh7+ {[%clk 0:00:28.7]} 51... Kg2 {[%clk 0:00:03.5]} 52. Qg6+
{[%clk 0:00:29.2]} 52... Kh2 {[%clk 0:00:03.8]} 53. Qh6+ {[%clk 0:00:29.7]}
53... Kg2 {[%clk 0:00:04]} 54. Qg5+ {[%clk 0:00:30.3]} 54... Kh2 {[%clk
0:00:04.1]} 55. Qh4+ {[%clk 0:00:30.5]} 55... Kg2 {[%clk 0:00:04.7]} 56. Qg5+
{[%clk 0:00:26.6]} 56... Kh2 {[%clk 0:00:04.2]} 57. Qd2 {[%clk 0:00:21.1]} 57...
Kg3 {[%clk 0:00:03.8]} 58. Qc1 {[%clk 0:00:16.1]} 58... Kg2 {[%clk 0:00:03.4]}
59. Qg5+ {[%clk 0:00:14.3]} 1/2-1/2

[Event "Early-Titled-Tuesday-Blitz-April-16-2024"]
[Site "Chess.com"]
[Date "2024.04.16"]
[Round "9"]
[White "chess_blitz00"]
[Black "Matols"]
[Result "1-0"]
[WhiteElo "2513"]
[BlackElo "2367"]
[TimeControl "180+1"]
[EndTime "9:49:57 PDT"]
[Termination "chess_blitz00 won on time"]

1. Nf3 {[%clk 0:03:00.9]} 1... d5 {[%clk 0:02:59.2]} 2. g3 {[%clk 0:02:55.1]}
2... Nf6 {[%clk 0:02:58.7]} 3. Bg2 {[%clk 0:02:55.6]} 3... e6 {[%clk 0:02:58.8]}
4. O-O {[%clk 0:02:56.3]} 4... Be7 {[%clk 0:02:54.6]} 5. c4 {[%clk 0:02:55.5]}
5... O-O {[%clk 0:02:53]} 6. b3 {[%clk 0:02:55.7]} 6... c5 {[%clk 0:02:47.8]} 7.
d3 {[%clk 0:02:53.9]} 7... Nc6 {[%clk 0:02:44.8]} 8. Nc3 {[%clk 0:02:53.9]} 8...
d4 {[%clk 0:02:43.3]} 9. Ne4 {[%clk 0:02:44.2]} 9... Nxe4 {[%clk 0:02:41.5]} 10.
dxe4 {[%clk 0:02:45.1]} 10... e5 {[%clk 0:02:41.1]} 11. Ne1 {[%clk 0:02:45.7]}
11... a6 {[%clk 0:02:29.5]} 12. Nd3 {[%clk 0:02:45.7]} 12... b5 {[%clk
0:02:25.5]} 13. f4 {[%clk 0:02:40.7]} 13... bxc4 {[%clk 0:02:21.5]} 14. bxc4
{[%clk 0:02:41.6]} 14... Bd6 {[%clk 0:02:12.6]} 15. Ba3 {[%clk 0:02:34.6]} 15...
Qa5 {[%clk 0:02:11.4]} 16. Qc1 {[%clk 0:02:33.9]} 16... Rb8 {[%clk 0:02:02.8]}
17. Bb2 {[%clk 0:02:09.6]} 17... f6 {[%clk 0:01:56.7]} 18. f5 {[%clk 0:02:04.9]}
18... Bd7 {[%clk 0:01:47.7]} 19. g4 {[%clk 0:02:03]} 19... h6 {[%clk 0:01:46.1]}
20. h4 {[%clk 0:02:02.8]} 20... Kf7 {[%clk 0:01:44.2]} 21. g5 {[%clk 0:02:01.8]}
21... hxg5 {[%clk 0:01:43.6]} 22. hxg5 {[%clk 0:02:02.6]} 22... Rh8 {[%clk
0:01:43]} 23. Kf2 {[%clk 0:01:55.2]} 23... Nb4 {[%clk 0:01:33.5]} 24. Kf3 {[%clk
0:01:16.7]} 24... Bc6 {[%clk 0:01:24]} 25. Kg3 {[%clk 0:01:07.8]} 25... Qb6
{[%clk 0:01:16.8]} 26. Ba3 {[%clk 0:01:03.4]} 26... Qb7 {[%clk 0:01:10.1]} 27.
Bxb4 {[%clk 0:01:01.8]} 27... cxb4 {[%clk 0:01:07.3]} 28. c5 {[%clk 0:00:56.6]}
28... Be7 {[%clk 0:00:52.2]} 29. Qc4+ {[%clk 0:00:55.5]} 29... Ke8 {[%clk
0:00:46.5]} 30. Rh1 {[%clk 0:00:54.5]} 30... Rxh1 {[%clk 0:00:23.8]} 31. Rxh1
{[%clk 0:00:55.4]} 31... Kd8 {[%clk 0:00:20.7]} 32. Qe6 {[%clk 0:00:48.2]} 32...
Qd7 {[%clk 0:00:19.9]} 33. Rh8+ {[%clk 0:00:11.7]} 33... Kc7 {[%clk 0:00:19.8]}
34. Rxb8 {[%clk 0:00:12.1]} 34... Kxb8 {[%clk 0:00:19.1]} 35. Qc4 {[%clk
0:00:08.3]} 35... a5 {[%clk 0:00:15.4]} 36. g6 {[%clk 0:00:08.5]} 36... Bd8
{[%clk 0:00:13.6]} 37. Qg8 {[%clk 0:00:05.3]} 37... Ka7 {[%clk 0:00:12]} 38. Qf7
{[%clk 0:00:04.9]} 38... Bc7 {[%clk 0:00:11.9]} 39. Qxd7 {[%clk 0:00:03.8]}
39... Bxd7 {[%clk 0:00:12.8]} 40. Bf3 {[%clk 0:00:04]} 40... Ka6 {[%clk
0:00:12.5]} 41. e3 {[%clk 0:00:03.9]} 41... Kb5 {[%clk 0:00:12]} 42. Be2 {[%clk
0:00:04.1]} 42... Ka4 {[%clk 0:00:11.1]} 43. Nb2+ {[%clk 0:00:04.6]} 43... Ka3
{[%clk 0:00:11]} 44. Nc4+ {[%clk 0:00:05.3]} 44... Kxa2 {[%clk 0:00:11.1]} 45.
exd4 {[%clk 0:00:05.8]} 45... exd4+ {[%clk 0:00:11]} 46. e5 {[%clk 0:00:06.5]}
46... Bxe5+ {[%clk 0:00:10.3]} 47. Nxe5 {[%clk 0:00:06.6]} 47... fxe5 {[%clk
0:00:10.8]} 48. f6 {[%clk 0:00:06.9]} 48... gxf6 {[%clk 0:00:09.4]} 49. Bc4+
{[%clk 0:00:06.1]} 49... b3 {[%clk 0:00:08.3]} 50. g7 {[%clk 0:00:06.8]} 50...
Be6 {[%clk 0:00:04.5]} 51. Bxe6 {[%clk 0:00:06.3]} 51... d3 {[%clk 0:00:04.8]}
52. g8=Q {[%clk 0:00:06.6]} 52... d2 {[%clk 0:00:05.2]} 53. Qg4 {[%clk
0:00:07.2]} 1-0